Cogmind - Beta 16 @@@ ROGUE MODE // 2025.10.23 @ 11:42:47 Player: mogus Result: Destroyed by Y-54 Guardian with Gatling Laser Performance ------------- Evolutions (3) 1500 Regions Visited (4) 800 Robots Destroyed (88) 440 Value Destroyed (3281) 3281 Prototype IDs (2) 40 Alien Tech Used (0) 0 Bonus (0) 0 TOTAL SCORE: 6061 Bonus ------- None Cogmind --------- Core Integrity 0/700 Matter 49/300 Energy 100/100 System Corruption 21% Temperature Cool (6) Movement Core (50) Location -7/Factory Parts ------- > --- POWER (1) -------- (None) > --- PROPULSION (3) --- (None) > --- UTILITY (6) ------ (None) > --- WEAPON (3) ------- (None) > --- INVENTORY (5) ---- Advanced Terrain Scan Processor Kinecellerator Transmission Jammer High-powered Tractor Beam Field Recycling Unit (0) Peak State ------------ > --- POWER ------------ Improved Ion Engine > --- PROPULSION ------- Light Treads Light Treads Advanced Treads > --- UTILITY ---------- Large Storage Unit Improved Terrain Scanner Recoil Stabilizer Weapon Cycler Hardened Heavy Armor Plating > --- WEAPON ----------- Assault Cannon Assault Cannon Assault Cannon > --- INVENTORY -------- Improved Ion Engine Cryofiber Web High-capacity Matter Pod High-capacity Matter Pod Advanced Terrain Scan Processor Kinecellerator Layered Light Armor Plating Layered Light Armor Plating Improved Shield Generator System Shield High-powered Tractor Beam Field Recycling Unit Assault Cannon Rocket Launcher Improved Datajack [Rating: 39] Favorites ----------- Power Heavy Ion Engine Engine Heavy Ion Engine Power Core Light Nuclear Core Propulsion Light Treads Treads Light Treads Leg Carbon-fiber Leg Utility Large Storage Unit Device ECM Suite Storage Large Storage Unit Processor Advanced Targeting Computer Protection Layered Light Armor Plating Weapon Assault Cannon Energy Gun Small Laser Energy Cannon Advanced Beam Cannon Ballistic Gun Autogun Ballistic Cannon Assault Cannon Launcher Grenade Launcher Slashing Weapon Mining Claw Special Melee Weapon Improved Datajack Build | -11 -10 -9 -8 -7 ------- Run | Yrd Mat Mat Mat Fac Slots Evolved 6 | . . 2 2 2 Power . | . . . . . Propulsion 1 | . . . . 1 Utility 4 | . . 2 1 1 Weapon 1 | . . . 1 . Parts Attached 66 | 7 6 23 19 11 Power 6 | 1 . 3 2 . Engine 5 | 1 . 2 2 . Core 1 | . . 1 . . Reactor . | . . . . . Propulsion 11 | 2 . 4 4 1 Treads 10 | 2 . 4 3 1 Leg 1 | . . . 1 . Wheel . | . . . . . Hover . | . . . . . Flight . | . . . . . Utility 24 | 1 2 6 8 7 Device 13 | . 1 3 4 5 Storage 3 | 1 1 . 1 . Processor 2 | . . 2 . . Hackware . | . . . . . Protection 6 | . . 1 3 2 Artifact . | . . . . . Weapon 25 | 3 4 10 5 3 Energy Gun 3 | 2 . 1 . . Energy Cannon 1 | . . 1 . . Ballistic Gun 10 | 1 3 4 2 . Ballistic Cannon 6 | . . 2 3 1 Launcher 3 | . . 2 . 1 Special Weapon . | . . . . . Impact Weapon . | . . . . . Slashing Weapon 1 | . 1 . . . Piercing Weapon . | . . . . . Special Melee Weapon 1 | . . . . 1 Unidentified Prototypes 2 | . . 2 . . Parts Lost 38 | . . 15 4 19 Power 3 | . . 2 . 1 Propulsion 10 | . . 5 2 3 Utility 13 | . . 2 2 9 Weapon 12 | . . 6 . 6 Highest Loss Streak 13 | . . 5 2 13 To Critical Strikes 1 | . . . . 1 Average Backups 13 | . 8 13 14 14 Power 2 | . 2 3 2 1 Propulsion . | . . . . . Utility 6 | . 3 6 7 8 Weapon 3 | . 3 3 3 3 Tool/Special . | . . . . . Unused Backups 19 | . 1 6 2 10 Power 3 | . 1 2 . . Propulsion . | . . . . . Utility 13 | . . 3 1 9 Weapon 3 | . . 1 1 1 Tool/Special . | . . . . . Average Slot Usage (%) 92 | . 98 86 96 90 Engine 9 | . 14 10 8 6 Treads 17 | . 28 14 12 19 Device 16 | . 12 18 16 16 Storage 11 | . 14 11 10 12 Processor 6 | . . 10 9 3 Protection 4 | . . . 8 6 Ballistic Gun 12 | . 25 10 18 . Ballistic Cannon 9 | . . 7 8 21 Peak Build Rating 39 | 6 8 18 31 39 Average Rating 21 | 3 7 13 27 33 On Entrance 12 | . 6 8 18 30 Avg Prop Armor Cover (%) 4 | . . . 4 . Naked Turns 34 | . . . . 34 Heaviest Build 68 | 13 31 40 51 68 Greatest Support 62 | 40 40 40 42 62 Greatest Overweight (x) 21 | . . 13 15 21 Average Overweight (x) . | . . . 1 . Largest Inventory Capacity 15 | 8 15 15 15 15 Average Capacity 14 | 6 12 15 15 14 Most Carried 15 | 3 14 15 15 15 Average Carried 13 | . 8 13 14 14 Final Capacity 15 | 8 15 15 15 5 Final Carried 15 | 1 11 12 15 5 Class Distribution -------------------- 42% | Mutant 26% | Gunner 20% | Tank 11% | Skirmisher Dominant Class ---------------- Mutant | -10/Materials Mutant | -9/Materials Gunner | -8/Materials Tank | -7/Factory Resources | -11 -10 -9 -8 -7 ----------- Run | Yrd Mat Mat Mat Fac Matter Collected 3074 | 254 174 1053 1159 434 Remotely . | . . . . . Salvage Created 2603 | . 245 980 1047 331 Parts 158 | . 21 62 54 21 Haulers Intercepted . | . . . . . Recyclers Shooed 2 | . . . 2 . Parts Field Recycled . | . . . . . Retrieved Matter . | . . . . . Parts Self-Destructed . | . . . . . Prevented . | . . . . . Parts Restored . | . . . . . Kills | -11 -10 -9 -8 -7 ------- Run | Yrd Mat Mat Mat Fac Combat Hostiles Destroyed 73 | . 8 30 19 16 Melee 3 | . 2 . . 1 Guns 31 | . 6 12 13 . Cannons 33 | . . 15 6 12 AOE 6 | . . 3 . 3 Classes Destroyed 14 | . 3 3 4 4 Builder 2 | . . . 1 1 Tunneler 1 | . . 1 . . Recycler 1 | . . . 1 . Operator 2 | . . 1 1 . Watcher 9 | . 3 2 4 . Swarmer 13 | . 3 7 . 3 Grunt 36 | . 5 15 12 4 Brawler 2 | . . . . 2 Duelist 1 | . . . 1 . Protector 1 | . . . . 1 Sentry 12 | . . 8 4 . Specialist 2 | . . . . 2 Hunter 2 | . . . 2 . Programmer 4 | . . . . 4 Best Kill Streak 4 | . 3 4 4 4 Combat Bots Only 4 | . 3 4 4 4 Max Kills in Single Turn 2 | . 1 2 2 1 Gunslinging . | . . . . . Exploded 1 | . . 1 . 1 Melee 1 | . 1 . . 1 Uniques/NPCs Destroyed . | . . . . . Combat | -11 -10 -9 -8 -7 -------- Run | Yrd Mat Mat Mat Fac Hostile Shots Fired 625 | . 53 178 117 277 Missed 174 | . 9 49 31 85 Hits 451 | . 44 129 86 192 Melee 6 | . . . . 6 Projectile 445 | . 44 129 86 186 Critical Strikes 16 | . 1 4 1 10 Damage Taken 6685 | . 536 1773 1252 3124 Core 1295 | . 122 312 150 711 Absorbed by Shields 103 | . . . . 103 Core Remaining (%) 61 | 100 51 22 72 . Volleys Fired 250 | . 28 99 69 54 Largest 3 | . 2 2 3 3 Hottest 111 | . 60 70 111 111 Shots Fired 576 | . 57 182 205 132 Gun 288 | . 57 98 133 . Cannon 278 | . . 78 72 128 Launcher 10 | . . 6 . 4 Special . | . . . . . Kinetic 541 | . 54 154 205 128 Thermal 25 | . 3 22 . . Explosive 10 | . . 6 . 4 Electromagnetic . | . . . . . Robot Hit Streak 15 | . 8 10 15 11 Robot Miss Streak 6 | . 3 6 3 6 Penetration Max . | . . . . . Secondary Targets 2 | . 1 1 . . Max Gunslinging Chain 1 | . 1 1 . . Shots Hit Robots 316 | . 33 106 113 64 Core Hits 152 | . 15 47 51 39 Critical Kills . | . . . . . Critical Parts Destroyed 1 | . . . 1 . Critical Strikes 7 | . . 3 2 2 Destroy 1 | . . . 1 . Blast 6 | . . 3 1 2 Melee Attacks 7 | . 7 . . . Impact . | . . . . . Slashing 7 | . 7 . . . Piercing . | . . . . . Sneak Attacks . | . . . . . Combat Hostiles . | . . . . . Follow-up Attacks . | . . . . . Damage Inflicted 6846 | . 480 1941 2132 2293 Guns 2421 | . 352 803 1266 . Cannons 3213 | . . 854 866 1493 Explosions 1013 | . . 259 . 754 Melee 92 | . 92 . . . Ramming 107 | . 36 25 . 46 Kinetic 5426 | . 321 1480 2132 1493 Thermal 233 | . 31 202 . . Explosive 988 | . . 234 . 754 Electromagnetic . | . . . . . Impact . | . . . . . Slashing 92 | . 92 . . . Piercing . | . . . . . Highest Corruption 21 | . 4 . . 21 Average Corruption 4 | . 3 . . 5 Corruption Purged . | . . . . . Corruption Blocked . | . . . . . Effects 49 | . 10 . . 39 Message Errors 12 | . 2 . . 10 Matter Fused 7 | . 1 . . 6 Heat Flow Errors 7 | . 1 . . 6 Energy Discharges 5 | . 1 . . 4 Parts Rejected 2 | . 1 . . 1 Data Loss (minor) 7 | . 2 . . 5 Data Loss (major) 2 | . . . . 2 Misfires 2 | . 2 . . . Alerts 3 | . . . . 3 Weapon Failures 2 | . . . . 2 Overload Shots . | . . . . . Overflow Damage 113 | . . 45 29 39 Projectiles 55 | . . . 29 26 Explosions 58 | . . 45 . 13 Melee . | . . . . . Knockbacks 26 | . . 8 5 13 Impact . | . . . . . Kinetic 25 | . . 8 4 13 Secondary 1 | . . . 1 . Self-Inflicted Damage 361 | . . 187 . 174 Shots 10 | . . 6 . 4 Rammed 24 | . 12 5 . 7 Targets Rammed 27 | . 14 5 . 8 Kicked . | . . . . . Crushed 3 | . 2 . . 1 Highest Temperature 567 | . 147 39 436 567 Average Temperature 103 | . 29 12 84 177 Received Heat Transfer 1746 | . 276 675 495 300 Effects 20 | . . . 5 15 Shutdowns 1 | . . . 1 . Energy Bleed 4 | . . . . 4 Interference 9 | . . . 3 6 Short Circuit 1 | . . . . 1 Damage (minor) 3 | . . . 1 2 Damage (major) 2 | . . . . 2 Siege Activations . | . . . . . Martial Activations . | . . . . . Shielding Activations . | . . . . . Robots Disrupted . | . . . . . Combat Hostiles . | . . . . . Robots Corrupted . | . . . . . Combat Hostiles . | . . . . . Parts Fried . | . . . . . Impact Corruptions . | . . . . . Robots Melted . | . . . . . Combat Hostiles . | . . . . . Parts Melted . | . . . . . Heat Transferred 525 | . 75 450 . . Parts Sabotaged . | . . . . . Parts Stolen . | . . . . . Parts Stripped . | . . . . . Power Chain Reactions . | . . . . . Alert | -11 -10 -9 -8 -7 ------- Run | Yrd Mat Mat Mat Fac Maximum Alert Level 1 | . . 1 1 . Low Security (%) 92 | 100 100 77 97 100 Level 1 7 | . . 22 2 . Level 2 . | . . . . . Level 3 . | . . . . . Level 4 . | . . . . . Level 5 . | . . . . . High Security . | . . . . . Max Security . | . . . . . Peak Influence 380 | . 82 380 208 155 Initial 156 | . . 5 156 79 Average 72 | . 12 133 81 28 Influence Increases 2320 | . 238 994 649 439 Destroy 0b10 Robot/C 1440 | . 160 600 380 300 Destroy 0b10 Robot/NC 80 | . 15 20 35 10 Destroy Leader 358 | . 46 164 98 50 Successful Hack 5 | . . 5 . . Disable Machine 270 | . 15 135 90 30 Destroy Structure 92 | . 2 55 16 19 Lose Combat Pursuer 75 | . . 15 30 30 Influence Decreases 2297 | . 224 636 847 590 Entered New Map 320 | . . 9 216 95 Time Decay 1621 | . 224 497 595 305 Lost Part 356 | . . 130 36 190 Squads Dispatched 13 | . 2 3 2 6 Investigation 3 | . . 1 . 2 Extermination 3 | . . . . 3 Reinforcement 7 | . 2 2 2 1 Assault . | . . . . . Garrison . | . . . . . Intercept . | . . . . . Searches Triggered . | . . . . . Construction Impeded 1 | . . . . 1 Haulers Reinforced . | . . . . . Active Scanning Responses . | . . . . . Cargo Convoy Interrupts 1 | . . . . 1 Stealth | -11 -10 -9 -8 -7 --------- Run | Yrd Mat Mat Mat Fac Distress Signals 7 | . 2 2 3 . Communications Jammed . | . . . . . Distress Signals . | . . . . . Times Spotted 141 | . 24 47 39 31 Peak Tracking Total 11 | . 5 4 4 11 Tactical Retreats 12 | . 4 2 4 2 ECM-based Alert Blocks 14 | . 9 1 4 . Traps | -11 -10 -9 -8 -7 ------- Run | Yrd Mat Mat Mat Fac Traps Triggered 6 | . 3 . 1 2 Indirectly . | . . . . . Trap Hack Attempts . | . . . . . Triggered . | . . . . . Disarmed . | . . . . . Reprogrammed . | . . . . . Reused . | . . . . . Traps Extracted . | . . . . . Installed . | . . . . . Triggered . | . . . . . Machines | -11 -10 -9 -8 -7 ---------- Run | Yrd Mat Mat Mat Fac Machines Disabled 18 | . 1 9 6 2 Max in Single Turn 2 | . 1 2 1 1 Machines Repaired . | . . . . . Machines Dismantled . | . . . . . Machines Sabotaged . | . . . . . Overloaded Fab Kills . | . . . . . Hacking | -11 -10 -9 -8 -7 --------- Run | Yrd Mat Mat Mat Fac Machines Accessed 9 | . 1 5 1 2 Terminals 7 | . . 4 1 2 Fabricators . | . . . . . Repair Stations . | . . . . . Recycling Units 2 | . 1 1 . . Scanalyzers . | . . . . . Garrison Access . | . . . . . Total Hacks 24 | . 8 10 3 3 Successful 8 | . 5 3 . . Failed 16 | . 3 7 3 3 Catastrophic 7 | . . 5 1 1 Database Lockouts . | . . . . . Manual . | . . . . . Terminals 15 | . . 9 3 3 Fabricators . | . . . . . Repair Stations . | . . . . . Recycling Units 9 | . 8 1 . . Scanalyzers . | . . . . . Garrison Access . | . . . . . Terminal Hacks 2 | . . 2 . . Transport Status 1 | . . 1 . . Investigation Status 1 | . . 1 . . Fabricator Hacks . | . . . . . Repair Station Hacks . | . . . . . Recycling Unit Hacks 6 | . 5 1 . . Recycle Component 2 | . 2 . . . Process 1 | . 1 . . . Report Inventory 2 | . 1 1 . . Retrieve Matter 1 | . 1 . . . Scanalyzer . | . . . . . Garrison Access Hacks . | . . . . . Unauthorized Hacks . | . . . . . Terminals . | . . . . . Fabricators . | . . . . . Repair Stations . | . . . . . Recycling Units . | . . . . . Scanalyzers . | . . . . . Garrison Access . | . . . . . Data Cores Recovered . | . . . . . Used . | . . . . . Hacking Detections 6 | . 1 3 1 1 Full Trace Events 5 | . 1 3 . 1 Feedback Events . | . . . . . Feedback Blocked . | . . . . . Robot Schematics Acquired . | . . . . . Robots Built . | . . . . . Authchips . | . . . . . Time . | . . . . . Total Robot Build Rating . | . . . . . Part Schematics Acquired . | . . . . . Parts Built . | . . . . . Authchips . | . . . . . Time . | . . . . . Total Part Build Rating . | . . . . . Part Studies Acquired . | . . . . . Parts Repaired . | . . . . . Time . | . . . . . Parts Recycled 2 | . 2 . . . Recycled Matter 126 | . 126 . . . Retrieved Matter 126 | . 126 . . . Retrieved Components . | . . . . . Parts Scanalyzed . | . . . . . Part Schematics Acquired . | . . . . . Parts Damaged . | . . . . . Bothacking | -11 -10 -9 -8 -7 ------------ Run | Yrd Mat Mat Mat Fac Used RIF Installer . | . . . . . Robots Hacked . | . . . . . Non-combat . | . . . . . Combat . | . . . . . Robot Hacks Applied . | . . . . . Relay Couplers Released . | . . . . . Fabnet Peak Effective % . | . . . . . Robots Rewired . | . . . . . Allies Hacked . | . . . . . Hacks Repelled . | . . . . . Allies | -11 -10 -9 -8 -7 -------- Run | Yrd Mat Mat Mat Fac Total Allies . | . . . . . Largest Group . | . . . . . Highest-Rated Group . | . . . . . Highest-Rated Ally . | . . . . . Total Orders . | . . . . . Ally Attacks . | . . . . . Total Damage . | . . . . . Kills . | . . . . . Allies Corrupted . | . . . . . Allies Melted . | . . . . . Intel | -11 -10 -9 -8 -7 ------- Run | Yrd Mat Mat Mat Fac Active Infowar (turns) 5609 | . 1114 2255 1586 654 Sensors 2476 | . . 1414 1059 3 Terrain 651 | . . . . 651 Traps 2183 | . . 1476 707 . Seismic 518 | . . . 518 . ECM 2764 | . 1114 779 871 . Robot Analysis Total . | . . . . . Derelict Logs Recovered . | . . . . . Drone Launches . | . . . . . Drone Recoveries . | . . . . . Exploration | -11 -10 -9 -8 -7 ------------- Run | Yrd Mat Mat Mat Fac Turns Passed 7398 | 90 1270 2255 2045 1738 Spaces Moved 3127 | 53 695 881 649 849 Core 142 | 9 . 21 1 111 Treads 2982 | 44 695 860 645 738 Legs 3 | . . . 3 . Wheels . | . . . . . Hover . | . . . . . Flight . | . . . . . Fastest Speed 50 | 50 160 160 152 50 Average Speed 201 | 141 160 212 273 174 Slowest Speed 1100 | 160 160 700 800 1100 Overloaded Moves . | . . . . . Propulsion Burnouts . | . . . . . Robots Hopped . | . . . . . Potential Cave-ins . | . . . . . Cave-ins Triggered . | . . . . . Exploration Rate (%) 45 | 5 86 69 48 21 Regions Visited 4 Branch Regions . Pre-discovered Areas . | . . . . . Known Exits Taken 1 | . . 1 . . Unknown Exits Taken 3 | 1 1 . 1 . Scrap Searched . | . . . . . Spaces Dug 9 | . . . 6 3 Terrain Destroyed 94 | . . 61 14 19 Melee . | . . . . . Projectile 24 | . . . 14 10 AOE 70 | . . 61 . 9 Terrain Rammed . | . . . . . Walls Destroyed . | . . . . . Machines Disabled . | . . . . . Actions | -11 -10 -9 -8 -7 --------- Run | Yrd Mat Mat Mat Fac Total 3719 | 69 775 1090 785 1000 Wait 115 | 1 8 42 11 53 Move 3123 | 52 694 880 648 849 Hop . | . . . . . Pick Up 71 | 8 14 25 16 8 Fast Attach 15 | . . 3 10 2 Attach 38 | 7 2 14 5 10 Detach 3 | . . . 1 2 Swap 31 | . 7 10 11 3 Drop 39 | 1 1 12 14 11 Fire 250 | . 28 99 69 54 Melee 7 | . 7 . . . Ram . | . . . . . Kick . | . . . . . Crush 27 | . 14 5 . 8 Escape Stasis . | . . . . . Rewire . | . . . . . Trap . | . . . . . Miscellaneous . | . . . . . Route ------- -11/Scrapyard -10/Materials (discovered 3 exits: *Mat x2 / [*Min]) -9/Materials (discovered 2 exits: *Mat / [*Min]) -8/Materials (discovered 2 exits: *Fac / [*Sto]) -7/Factory History --------- Turn | Location | Event 3 | -11/Scrapyard | Discovered new exit (range 16) 91 | -11/Scrapyard | Entered Materials 303 | -10/Materials | Build established: Mutant 404 | -10/Materials | Discovered new exit (range 11) 642 | -10/Materials | Discovered new exit (range 6) 797 | -10/Materials | Discovered new exit (range 8) 1361 | -10/Materials | Entered another Materials area 1361 | -9/Materials | Evolved 2 slots: Utility x2 2246 | -9/Materials | Discovered new exit (range 6) 2391 | -9/Materials | Discovered new exit (range 6) 2644 | -9/Materials | Identified exit to Materials 2715 | -9/Materials | Build established: Skirmisher 2940 | -9/Materials | Core integrity fell below 50% 3077 | -9/Materials | Build established: Mutant 3361 | -9/Materials | Lost 5 parts (2p1u2w) 3616 | -9/Materials | Entered another Materials area 3616 | -8/Materials | Evolved 2 slots: Utility x1, Weapon x1 3816 | -8/Materials | Discovered new exit (range 15) 3916 | -8/Materials | Build established: Gunner 4897 | -8/Materials | Discovered new exit (range 7) 5661 | -8/Materials | Entered Factory 5661 | -7/Factory | Evolved 2 slots: Propulsion x1, Utility x1 5949 | -7/Factory | Build established: Tank 7169 | -7/Factory | Lost 3 parts (3n) 7289 | -7/Factory | Cargo convoy interrupted 7311 | -7/Factory | System corruption reached 10% 7334 | -7/Factory | Core integrity fell below 50% 7386 | -7/Factory | Core integrity fell below 20% 7393 | -7/Factory | Lost 13 parts (1p7u5w) 7399 | -7/Factory | Destroyed by Y-54 Guardian with Gatling Laser Last Messages --------------- U-05 Engineer lays Concrete. U-05 Engineer builds a Wall. K-01 Serf collects debris. R-06 Scavenger collects Remote Datajack. System corrupted: Matter fused (-7). Imp. Datajack destroyed. P-60 Hacker resets P-60 Hacker, system corruption cleaned. P-60 Hacker resets P-70 Sage, system corruption cleaned. Subcomponent Replicator disabled. System corrupted: Matter fused (-9). Penetrated by Slug. Lyr. Light Armor Plating destroyed. Weapon Cycler destroyed. Cryofiber Web destroyed. Acquired Imp. Sensor Array. System corrupted: Imp. Sensor Array rejected. P-60 Hacker resets P-70 Sage, system corruption cleaned. Map ----- +----------------------------------------------------+ | | | | | | | | | | | | | | | ?????????????????????????????????????????????????? | | ?????????????????????????????????????????????????? | | ?????????????????????????????????????????????????? | | ?????????????????????????????????????????????????? | | ?????????????????????????????????????????????????? | | ?????????????????????????????????????????????????? | | ?????????????????????????????????????????????????? | | ?????????????????????????????????????????????????? | | ?????????????????????????????????????????????????? | | ?????????????????????????????????????????????????? | | ?????????????????????????????????????????????????? | | ?????????????????????????????????????????????????? | | ?????????????????????????????????????????????????? | | ????????????????????????####+####????????????????? | | ????????????????????????# #????????????????? | | ???????????? ??????###### #????????????????? | | ???????????# ### "" #????????????????? | | ????????????? Y T" +????????????????? | | ???????????????????# @ #????????????????? | | ???????????????????##+### #????????????????? | | ????????????????????????# #????????????????? | | ????????????????????????### ###????????????????? | | ??????????????????????????# #??????????????????? | | ??????????????????????????# #??????????????????? | | ?????????????????########?# #??????????????????? | | ????????????????? ?# #???? ?????????????? | | ?????????????????? # #??"" "????????????? | | ???????????????????"" """ # # """ """??????????? | | ???????????????????"" """ + + #????????? | | ???????????????????"" """ # # " " ! #????????? | | ?????????????????? # # "Y" #????????? | | ????????????????? ! ?# #?""" ????????????? | | ????????????????? * ?# #??##??????????????? | | ?????????????????#######??# #??????????????????? | | ??????????????????????????# #??????????????????? | | ???????????????????? ?????# ########???????????? | | ???????????????????? "????# # #???????????? | | ???????????????????? " ???# # # ??????? | | ???????????????????" " ???# # # ?????? | | ???????????????????" " "??# # # ???? | | ?????????????????? " " " ?# # # ?? | | ?????????????????? " " " # # # ? | | ?????????????????? " " " # # # ? | +----------------------------------------------------+ Best States ------------- Heat Dissipation 34 Energy Generation 14 Energy Capacity 280 Matter Stores 500 Matter Capacity 500 Sight Range 16 Robot Scan Range 15 Terrain Scan Range 16 Terrain Scan Density 10 ECM Strength 1 Base Temperature (-) 100 Armor Coverage 600 Resistance: TH 10 Weapon Cycling 15 Evasion (%) 50 Targeting Accuracy 8 Recoil Reduction 7 Item Schematics ----------------- None Robot Schematics ------------------ None Fabricated ------------ Nothing Repaired ---------- Nothing Studied --------- None Alien Tech Used ----------------- None Achievements -------------- Bumper Bots DATA ERROR: Steam Global Achievement% For Emergencies Only Jackpot Organ Harvest Resistances Are Futile There's More Where That Came From Well Done Challenges ------------ None Game ------ Seed EncryptedAssaultSpecial Manual? 0 Play Time 00:47:26 Cumulative 15.4 hours Start 2025.10.23 @ 10:56:54 End 2025.10.23 @ 11:42:47 Sessions 1 Manual Loads 0 Difficulty Rogue Special Mode None Game No. 17 Rogue 12 Adventurer 5 Explorer 0 Win Type - Total 0 Types 0/0/0/0/0/0/0/0/0/0 Lore% 18 Gallery% 23 Achievement% 12 Wizard Run 0 Options --------- Layout 1 ASCII 0 Keyboard 0 Movement Mouse Keybinds 0 Fullscreen 1 Font 24/Smallcaps Map View 50x35 Zoom Use 0% Tactical HUD 0 Map Filters NONE Filters NONE Steam 1 RUN: dbe30d52-737c-45bc-89ac-bb2909f0c78e